[Event "GER-ch Youth U14W 2020"]
[Site "Willingen"]
[Date "2020.10.23"]
[Round "6.7"]
[White "Cordes, Jule"]
[Black "Voigt, Anastasia"]
[Result "0-1"]
[ECO "D55"]
[WhiteElo "1718"]
[BlackElo "1562"]
[Annotator "NA"]
[PlyCount "88"]
[EventDate "2020.10.20"]
[EventType "swiss"]
[EventRounds "7"]
[EventCountry "GER"]
[SourceTitle "playchess.com"]
[Source "ChessBase"]
[SourceQuality "1"]
[TimeControl "40/5400+30:1800+30"]

1. d4 {[%emt 0:00:00]} d5 {[%emt 0:00:00]} 2. c4 {[%emt 0:00:00]} e6 {[%emt 0:00:00]} 3. Nc3 {[%emt 0:00:00]} Nf6 {[%emt 0:00:00]} 4. Nf3 {[%emt 0:00:11]} Be7 {[%emt 0:00:16]} 5. Bg5 {[%emt 0:00:30]} O-O {[%emt 0:00:25]} 6. e3 {[%emt 0:00:20]} c6 {[%emt 0:00:23]} 7. Qc2 {[%emt 0:01:49]} Nbd7 {[%emt 0:00:17]} 8. cxd5 exd5 {[%emt 0:00:15]} 9. Bd3 {[%emt 0:05:25]} Re8 {[%emt 0:00:27]} 10. O-O {[%emt 0:00:40]} Nf8 {[%emt 0:06:45]} 11. Rab1 {[%emt 0:08:15]} a5 {[%emt 0:00:57]} 12. Ne5 {[%emt 0:11:29]} g6 {[%emt 0:03:00]} 13. f4 {[%emt 0:11:22]} Ne6 {[%emt 0:01:41]} 14. Qf2 {[%emt 0:07:37]} Ng7 {[%emt 0:01:17]} 15. h3 {[%emt 0:09:08]} Bf5 {[%emt 0:02:22]} 16. Bxf5 {[%emt 0:07:27]} Nxf5 {[%emt 0:00:08]} 17. g4 {[%emt 0:08:24]} Nd6 {[%emt 0:02:35]} 18. Qg2 {[%emt 0:17:35]} Nfe4 {[%emt 0:01:57]} 19. Nxe4 {[%emt 0:06:12]} Nxe4 {[%emt 0:00:13]} 20. Bxe7 {[%emt 0:02:08]} Qxe7 {[%emt 0:00:11]} 21. g5 {[%emt 0:00:38]} Qe6 {[%emt 0:05:03]} 22. h4 {[%emt 0:00:30]} b6 {[%emt 0:00:32]} 23. Rf3 {[%emt 0:00:21]} c5 {[%emt 0:01:06]} 24. Rbf1 {[%emt 0:00:10]} Nd6 {[%emt 0:01:47]} 25. Qd2 {[%emt 0:01:44]} c4 {[%emt 0:01:33]} 26. Qh2 {[%emt 0:00:26]} b5 {[%emt 0:01:07]} 27. h5 {[%emt 0:00:06]} b4 {[%emt 0:01:42]} 28. hxg6 {[%emt 0:00:11]} fxg6 {[%emt 0:00:49]} 29. Kf2 {[%emt 0:00:59]} Rac8 {[%emt 0:04:00]} 30. Rh1 {[%emt 0:00:17]} Rc7 {[%emt 0:00:19]} 31. Rh3 {[%emt 0:00:33]} Ree7 {[%emt 0:00:23]} 32. Rh6 {[%emt 0:00:26]} Rg7 {[%emt 0:05:38]} 33. Ke2 {[%emt 0:00:55]} Nf5 {[%emt 0:00:48]} 34. Rh3 {[%emt 0:00:26]} a4 {[%emt 0:01:57]} 35. Rc1 {[%emt 0:00:37]} Qa6 {[%emt 0:01:29]} 36. Kd2 {[%emt 0:00:23]} a3 {[%emt 0:00:57]} 37. b3 {[%emt 0:00:40]} cxb3 {[%emt 0:01:04]} 38. Qg1 {[%emt 0:00:31]} bxa2 {[%emt 0:01:39]} 39. Ng4 {[%emt 0:00:24]} Nd6 {[%emt 0:03:36]} 40. Nf6+ {[%emt 0:00:31]} Kh8 {[%emt 0:01:00]} 41. Qd1 {[%emt 0:04:05]} Ne4+ {[%emt 0:01:48]} 42. Ke1 {[%emt 0:02:16]} Nc3 {[%emt 0:04:32]} 43. Qd2 {[%emt 0:00:07]} Qe2+ {[%emt 0:00:45]} 44. Qxe2 {[%emt 0:00:08]} Nxe2 {[%emt 0:00:07]} 0-1

[Event "GER-ch Youth U14W 2020"]
[Site "Willingen"]
[Date "2020.10.23"]
[Round "6.8"]
[White "Ulrich, Helena Irene"]
[Black "Wörz, Ann-Sophie"]
[Result "1/2-1/2"]
[ECO "B07"]
[WhiteElo "1610"]
[BlackElo "1473"]
[Annotator "NA"]
[PlyCount "44"]
[EventDate "2020.10.20"]
[EventType "swiss"]
[EventRounds "7"]
[EventCountry "GER"]
[SourceTitle "playchess.com"]
[Source "ChessBase"]
[SourceQuality "1"]
[TimeControl "40/5400+30:1800+30"]

1. e4 {[%emt 0:00:00]} d6 {[%emt 0:00:00]} 2. d4 {[%emt 0:00:00]} Nf6 {[%emt 0:00:00]} 3. Nc3 {[%emt 0:00:00]} c6 {[%emt 0:00:00]} 4. f4 {[%emt 0:00:00]} Qa5 {[%emt 0:00:00]} 5. Bd3 {[%emt 0:00:12]} e5 {[%emt 0:00:36]} 6. Nf3 {[%emt 0:00:29]} Nbd7 {[%emt 0:00:21]} 7. Be3 {[%emt 0:00:42]} Ng4 {[%emt 0:02:54]} 8. Bd2 {[%emt 0:00:44]} Qc7 {[%emt 0:00:47]} 9. h3 {[%emt 0:00:22]} Ngf6 {[%emt 0:00:19]} 10. Be3 {[%emt 0:01:04]} Be7 {[%emt 0:01:37]} 11. Qd2 {[%emt 0:02:27]} b5 {[%emt 0:02:22]} 12. dxe5 {[%emt 0:03:17]} dxe5 {[%emt 0:00:44]} 13. g4 {[%emt 0:02:16]} Bb7 {[%emt 0:03:47]} 14. Ne2 {[%emt 0:10:10]} O-O {[%emt 0:05:22]} 15. O-O-O {[%emt 0:02:48]} a6 {[%emt 0:02:48]} 16. Ng3 {[%emt 0:02:30]} Rfd8 {[%emt 0:08:57]} 17. g5 {[%emt 0:01:57]} Ne8 {[%emt 0:00:34]} 18. f5 {[%emt 0:14:23]} Nc5 {[%emt 0:05:51]} 19. Qc3 {[%emt 0:05:06]} Na4 {[%emt 0:02:37]} 20. Qe1 {[%emt 0:01:45]} c5 {[%emt 0:08:14]} 21. c4 {[%emt 0:11:13]} Bf8 {[%emt 0:11:34]} 22. Rg1 {[%emt 0:07:42]} Nb6 {[%emt 0:05:30]} 1/2-1/2

[Event "GER-ch Youth U14W 2020"]
[Site "Willingen"]
[Date "2020.10.23"]
[Round "6.9"]
[White "Fischer, Darja"]
[Black "Petersen, Sophie"]
[Result "1-0"]
[ECO "D60"]
[WhiteElo "1598"]
[BlackElo "1524"]
[Annotator "NA"]
[PlyCount "73"]
[EventDate "2020.10.20"]
[EventType "swiss"]
[EventRounds "7"]
[EventCountry "GER"]
[SourceTitle "playchess.com"]
[Source "ChessBase"]
[SourceQuality "1"]
[TimeControl "40/5400+30:1800+30"]

1. d4 {[%emt 0:00:00]} d5 {[%emt 0:00:00]} 2. c4 {[%emt 0:00:00]} e6 {[%emt 0:00:00]} 3. Nc3 {[%emt 0:00:00]} Nf6 {[%emt 0:00:01]} 4. Bg5 {[%emt 0:00:04]} Be7 {[%emt 0:00:09]} 5. e3 {[%emt 0:00:46]} O-O {[%emt 0:00:55]} 6. Nf3 {[%emt 0:00:19]} Nbd7 {[%emt 0:01:37]} 7. cxd5 {[%emt 0:00:37]} exd5 {[%emt 0:00:18]} 8. Bd3 {[%emt 0:00:51]} Re8 {[%emt 0:01:07]} 9. Qc2 {[%emt 0:00:31]} Nf8 {[%emt 0:01:18]} 10. Bxf6 {[%emt 0:01:22]} Bxf6 {[%emt 0:00:24]} 11. O-O-O {[%emt 0:00:38]} c6 {[%emt 0:05:59]} 12. Rdg1 {[%emt 0:01:01]} b5 {[%emt 0:05:59]} 13. g4 {[%emt 0:00:39]} a5 {[%emt 0:04:07]} 14. h4 {[%emt 0:01:02]} g6 {[%emt 0:05:59]} 15. g5 {[%emt 0:03:20]} Bg7 {[%emt 0:06:00]} 16. Ne1 {[%emt 0:04:02]} a4 {[%emt 0:05:43]} 17. Rg3 {[%emt 0:05:44]} Bd7 {[%emt 0:07:13]} 18. a3 {[%emt 0:08:21]} Qa5 {[%emt 0:03:14]} 19. Na2 {[%emt 0:02:47]} Bxd4 {[%emt 0:03:24]} 20. h5 {[%emt 0:04:26]} c5 {[%emt 0:12:22]} 21. Kd1 {[%emt 0:07:32]} Be5 {[%emt 0:04:11]} 22. f4 {[%emt 0:03:56]} c4 {[%emt 0:00:19]} 23. fxe5 {[%emt 0:09:09]} cxd3 {[%emt 0:00:18]} 24. Nxd3 {[%emt 0:10:24]} Bf5 {[%emt 0:03:04]} 25. Nab4 {[%emt 0:00:59]} Rac8 {[%emt 0:03:03]} 26. Qf2 {[%emt 0:03:06]} Qa8 {[%emt 0:03:41]} 27. h6 {[%emt 0:11:06]} d4 {[%emt 0:01:55]} 28. Rf1 {[%emt 0:01:41]} dxe3 {[%emt 0:03:28]} 29. Rxe3 {[%emt 0:01:30]} Ne6 {[%emt 0:01:33]} 30. Kd2 {[%emt 0:05:47]} Nxg5 {[%emt 0:01:15]} 31. Qh4 {[%emt 0:02:35]} f6 {[%emt 0:10:45]} 32. exf6 {[%emt 0:04:20]} Qg2+ {[%emt 0:01:09]} 33. Qf2 {[%emt 0:03:03]} Qxf2+ {[%emt 0:01:41]} 34. Nxf2 {[%emt 0:00:11]} Kf7 {[%emt 0:01:37]} 35. Rxe8 {[%emt 0:01:34]} Rxe8 {[%emt 0:00:58]} 36. Nc6 {[%emt 0:01:11]} Kxf6 {[%emt 0:01:47]} 37. Nd4 {[%emt 0:00:43]} 1-0

[Event "GER-ch Youth U14W 2020"]
[Site "Willingen"]
[Date "2020.10.23"]
[Round "6.10"]
[White "Lorenz, Anouk"]
[Black "Roncea, Andrea-Alexandra"]
[Result "0-1"]
[ECO "C44"]
[WhiteElo "1504"]
[BlackElo "1644"]
[Annotator "NA"]
[PlyCount "98"]
[EventDate "2020.10.20"]
[EventType "swiss"]
[EventRounds "7"]
[EventCountry "GER"]
[SourceTitle "playchess.com"]
[Source "ChessBase"]
[SourceQuality "1"]
[TimeControl "40/5400+30:1800+30"]

1. e4 {[%emt 0:00:00]} e5 {[%emt 0:00:00]} 2. Nf3 {[%emt 0:00:00]} Nc6 {[%emt 0:00:00]} 3. d4 {[%emt 0:00:00]} exd4 {[%emt 0:00:00]} 4. Bc4 {[%emt 0:00:00]} Bc5 {[%emt 0:00:12]} 5. Ng5 {[%emt 0:00:07]} Nh6 {[%emt 0:00:20]} 6. Nxf7 {[%emt 0:00:23]} Nxf7 {[%emt 0:00:14]} 7. Bxf7+ {[%emt 0:00:06]} Kxf7 {[%emt 0:00:07]} 8. Qh5+ {[%emt 0:00:06]} g6 {[%emt 0:00:17]} 9. Qxc5 {[%emt 0:00:05]} d6 {[%emt 0:00:45]} 10. Qb5 {[%emt 0:00:13]} Re8 {[%emt 0:04:43]} 11. O-O {[%emt 0:01:07]} Kg7 {[%emt 0:09:03]} 12. Bg5 {[%emt 0:01:37]} Qd7 {[%emt 0:02:06]} 13. f4 {[%emt 0:09:28]} Rxe4 {[%emt 0:16:43]} 14. Nd2 {[%emt 0:02:53]} Re8 {[%emt 0:03:43]} 15. Rf3 {[%emt 0:29:48]} Qf5 {[%emt 0:07:39]} 16. Qb3 {[%emt 0:03:44]} Re2 {[%emt 0:15:22]} 17. Rd1 {[%emt 0:10:35]} Na5 {[%emt 0:08:29]} 18. Qa4 {[%emt 0:06:06]} Nc6 19. h3 {[%emt 0:27:19]} Bd7 {[%emt 0:14:11]} 20. g4 {[%emt 0:03:18]} Qd5 {[%emt 0:02:30]} 21. Rf2 {[%emt 0:02:26]} Re3 {[%emt 0:03:51]} 22. Qc4 {[%emt 0:01:02]} Qxc4 {[%emt 0:02:19]} 23. Nxc4 {[%emt 0:00:04]} Rxh3 {[%emt 0:02:02]} 24. Kg2 {[%emt 0:00:30]} Bxg4 {[%emt 0:00:28]} 25. Re1 {[%emt 0:00:05]} h6 {[%emt 0:00:56]} 26. Be7 {[%emt 0:00:40]} Kf7 {[%emt 0:00:57]} 27. Bxd6 {[%emt 0:00:09]} cxd6 {[%emt 0:00:37]} 28. Nxd6+ {[%emt 0:00:05]} Kf8 {[%emt 0:01:32]} 29. Nxb7 {[%emt 0:00:28]} Re3 {[%emt 0:01:04]} 30. Rb1 {[%emt 0:01:43]} Nb4 {[%emt 0:03:06]} 31. a3 {[%emt 0:00:32]} Nd5 {[%emt 0:00:20]} 32. Kg1 {[%emt 0:00:28]} Ke7 {[%emt 0:00:51]} 33. Rd2 {[%emt 0:00:48]} Nxf4 {[%emt 0:01:04]} 34. Kf1 {[%emt 0:00:26]} Rf3+ {[%emt 0:00:35]} 35. Kg1 {[%emt 0:00:07]} Ne6 {[%emt 0:00:25]} 36. a4 {[%emt 0:00:37]} Rf5 {[%emt 0:00:34]} 37. b4 {[%emt 0:00:10]} Bf3 {[%emt 0:00:31]} 38. Na5 {[%emt 0:00:20]} Rb8 {[%emt 0:00:30]} 39. Nc4 {[%emt 0:00:43]} Bd5 {[%emt 0:00:28]} 40. Na3 {[%emt 0:00:56]} Rg5+ {[%emt 0:00:46]} 41. Kh2 {[%emt 0:30:39]} a6 {[%emt 0:03:15]} 42. b5 {[%emt 0:00:00]} axb5 {[%emt 0:00:52]} 43. Nxb5 {[%emt 0:00:00]} Bc6 {[%emt 0:02:00]} 44. Re1 {[%emt 0:00:00]} Bxb5 {[%emt 0:01:32]} 45. axb5 {[%emt 0:00:00]} Rbxb5 {[%emt 0:02:08]} 46. Rxd4 {[%emt 0:00:00]} Rh5+ {[%emt 0:01:06]} 47. Kg3 {[%emt 0:00:00]} Rbg5+ {[%emt 0:01:21]} 48. Rg4 {[%emt 0:00:00]} Rxg4+ {[%emt 0:00:12]} 49. Kxg4 {[%emt 0:00:00]} Rc5 {[%emt 0:01:05]} 0-1

[Event "GER-ch Youth U14W 2020"]
[Site "Willingen"]
[Date "2020.10.23"]
[Round "6.11"]
[White "Schulz, Hannah"]
[Black "Deák-Sala, Emília"]
[Result "1-0"]
[ECO "B28"]
[WhiteElo "1589"]
[BlackElo "1641"]
[Annotator "NA"]
[PlyCount "171"]
[EventDate "2020.10.20"]
[EventType "swiss"]
[EventRounds "7"]
[EventCountry "GER"]
[SourceTitle "playchess.com"]
[Source "ChessBase"]
[SourceQuality "1"]
[TimeControl "40/5400+30:1800+30"]

1. e4 {[%emt 0:00:00]} c5 {[%emt 0:00:00]} 2. Nf3 {[%emt 0:00:00]} a6 {[%emt 0:00:00]} 3. c3 {[%emt 0:00:03]} e6 {[%emt 0:00:00]} 4. d4 {[%emt 0:00:24]} d5 {[%emt 0:00:13]} 5. e5 {[%emt 0:00:35]} Bd7 {[%emt 0:00:15]} 6. Bd3 {[%emt 0:01:00]} cxd4 7. cxd4 Bb5 {[%emt 0:01:38]} 8. Bc2 {[%emt 0:00:55]} Ne7 {[%emt 0:01:47]} 9. Nc3 {[%emt 0:03:08]} Qc7 {[%emt 0:08:55]} 10. a4 {[%emt 0:01:44]} Bd7 {[%emt 0:03:24]} 11. O-O {[%emt 0:02:37]} Nbc6 {[%emt 0:01:45]} 12. Bd2 {[%emt 0:06:18]} f6 {[%emt 0:12:47]} 13. Re1 {[%emt 0:07:48]} f5 {[%emt 0:05:47]} 14. Ne2 {[%emt 0:04:59]} h6 {[%emt 0:03:45]} 15. b4 {[%emt 0:03:11]} Na7 {[%emt 0:03:18]} 16. Qb1 {[%emt 0:04:20]} b6 {[%emt 0:03:01]} 17. Rc1 {[%emt 0:01:58]} Qb7 {[%emt 0:02:27]} 18. Bd3 {[%emt 0:03:53]} g5 {[%emt 0:13:59]} 19. Ra2 {[%emt 0:08:21]} Rc8 {[%emt 0:05:36]} 20. Rxc8+ {[%emt 0:00:39]} Nexc8 {[%emt 0:04:10]} 21. b5 {[%emt 0:01:41]} a5 {[%emt 0:03:10]} 22. Rc2 {[%emt 0:01:05]} Be7 {[%emt 0:00:26]} 23. Qc1 {[%emt 0:01:04]} Bd8 {[%emt 0:00:23]} 24. Ng3 {[%emt 0:02:13]} O-O {[%emt 0:03:55]} 25. Nh5 {[%emt 0:01:39]} Be8 {[%emt 0:01:02]} 26. Nf6+ {[%emt 0:09:48]} Bxf6 {[%emt 0:00:54]} 27. exf6 {[%emt 0:00:57]} Qf7 {[%emt 0:03:24]} 28. Rxc8 {[%emt 0:07:13]} Nxc8 {[%emt 0:00:10]} 29. Qxc8 {[%emt 0:00:05]} Bxb5 {[%emt 0:04:27]} 30. Qc2 {[%emt 0:01:33]} Bxd3 {[%emt 0:00:20]} 31. Qxd3 {[%emt 0:00:06]} Qxf6 {[%emt 0:00:39]} 32. Qb5 {[%emt 0:00:35]} Qd8 {[%emt 0:02:28]} 33. Ne5 {[%emt 0:01:35]} Qc7 {[%emt 0:01:49]} 34. Qd7 {[%emt 0:01:06]} Qxd7 {[%emt 0:02:11]} 35. Nxd7 {[%emt 0:00:04]} Rc8 {[%emt 0:00:33]} 36. Nxb6 {[%emt 0:01:29]} Rc2 {[%emt 0:00:11]} 37. Be1 {[%emt 0:00:17]} Rc1 {[%emt 0:02:11]} 38. Kf1 {[%emt 0:00:20]} Rd1 {[%emt 0:00:28]} 39. Ke2 {[%emt 0:00:33]} Rxd4 {[%emt 0:00:27]} 40. Bxa5 {[%emt 0:00:36]} Kf7 {[%emt 0:01:32]} 41. Bc3 {[%emt 0:34:04]} Re4+ {[%emt 0:30:59]} 42. Kd3 {[%emt 0:00:38]} f4 {[%emt 0:00:48]} 43. a5 {[%emt 0:00:57]} f3 {[%emt 0:02:11]} 44. gxf3 {[%emt 0:02:13]} Rf4 {[%emt 0:00:03]} 45. Bd2 {[%emt 0:02:27]} Rxf3+ {[%emt 0:01:00]} 46. Be3 {[%emt 0:00:12]} Kg6 {[%emt 0:02:13]} 47. a6 {[%emt 0:00:33]} Rf7 {[%emt 0:00:10]} 48. Na4 {[%emt 0:01:39]} Rf8 {[%emt 0:00:19]} 49. a7 {[%emt 0:00:15]} Ra8 {[%emt 0:00:12]} 50. Nc3 {[%emt 0:00:21]} Kf5 {[%emt 0:01:11]} 51. Nb5 {[%emt 0:00:35]} Rd8 {[%emt 0:01:55]} 52. Bb6 {[%emt 0:01:43]} Rg8 {[%emt 0:00:41]} 53. Nd4+ {[%emt 0:01:26]} Kf6 {[%emt 0:00:00]} 54. Nc6 {[%emt 0:00:00]} Ra8 {[%emt 0:00:00]} 55. Bc7 {[%emt 0:00:00]} h5 {[%emt 0:00:00]} 56. Kd4 {[%emt 0:00:00]} Kf5 {[%emt 0:00:00]} 57. Bb8 {[%emt 0:00:00]} Kg4 {[%emt 0:00:00]} 58. Ne5+ {[%emt 0:00:00]} Kh3 {[%emt 0:00:00]} 59. Nf3 {[%emt 0:00:00]} g4 {[%emt 0:00:00]} 60. Ng5+ {[%emt 0:00:00]} Kg2 {[%emt 0:00:00]} 61. Nxe6 {[%emt 0:00:00]} Kxf2 {[%emt 0:00:00]} 62. Nf4 {[%emt 0:00:00]} Kg1 {[%emt 0:00:00]} 63. Nxh5 {[%emt 0:00:00]} Rxa7 {[%emt 0:00:00]} 64. Bxa7 {[%emt 0:00:00]} Kxh2 {[%emt 0:00:00]} 65. Bb8+ {[%emt 0:00:00]} Kg2 {[%emt 0:00:00]} 66. Kxd5 {[%emt 0:00:00]} Kf3 {[%emt 0:00:00]} 67. Kd4 {[%emt 0:00:00]} g3 {[%emt 0:00:00]} 68. Nxg3 {[%emt 0:00:00]} Kf2 {[%emt 0:00:00]} 69. Ke4 {[%emt 0:00:00]} Kg2 {[%emt 0:00:00]} 70. Ke3 {[%emt 0:00:00]} Kg1 {[%emt 0:00:00]} 71. Kf3 {[%emt 0:00:00]} Kh2 {[%emt 0:00:00]} 72. Ne2+ {[%emt 0:00:00]} Kh1 {[%emt 0:00:00]} 73. Ba7 {[%emt 0:00:00]} Kh2 {[%emt 0:00:00]} 74. Ng3 {[%emt 0:00:00]} Kh3 {[%emt 0:00:00]} 75. Bg1 {[%emt 0:00:00]} Kh4 {[%emt 0:00:00]} 76. Ne4 {[%emt 0:00:00]} Kh3 {[%emt 0:00:00]} 77. Ng5+ {[%emt 0:00:00]} Kh4 {[%emt 0:00:00]} 78. Kf4 {[%emt 0:00:00]} Kh5 {[%emt 0:00:00]} 79. Kf5 {[%emt 0:00:00]} Kh4 {[%emt 0:00:00]} 80. Bf2+ {[%emt 0:00:00]} Kh5 {[%emt 0:00:00]} 81. Ne6 {[%emt 0:00:00]} Kh6 {[%emt 0:00:00]} 82. Bd4 {[%emt 0:00:00]} Kh5 {[%emt 0:00:00]} 83. Bf6 {[%emt 0:00:00]} Kh6 {[%emt 0:00:00]} 84. Bg5+ {[%emt 0:00:00]} Kh7 {[%emt 0:00:00]} 85. Kf6 {[%emt 0:00:00]} Kh8 {[%emt 0:00:00]} 86. Kf7 {[%emt 0:00:00]} 1-0

[Event "GER-ch Youth U14W 2020"]
[Site "Willingen"]
[Date "2020.10.23"]
[Round "6.12"]
[White "Foos, Vanessa"]
[Black "Lieberwirth, Nele"]
[Result "1-0"]
[ECO "C57"]
[WhiteElo "1328"]
[BlackElo "1366"]
[Annotator "NA"]
[PlyCount "97"]
[EventDate "2020.10.20"]
[EventType "swiss"]
[EventRounds "7"]
[EventCountry "GER"]
[SourceTitle "playchess.com"]
[Source "ChessBase"]
[SourceQuality "1"]
[TimeControl "40/5400+30:1800+30"]

1. e4 {[%emt 0:00:00]} e5 {[%emt 0:00:00]} 2. Nf3 {[%emt 0:00:00]} Nc6 {[%emt 0:00:00]} 3. Bc4 {[%emt 0:00:00]} Nf6 {[%emt 0:00:00]} 4. Ng5 {[%emt 0:00:00]} d5 {[%emt 0:00:02]} 5. exd5 {[%emt 0:00:00]} Nd4 {[%emt 0:00:27]} 6. c3 {[%emt 0:05:24]} Nf5 {[%emt 0:00:27]} 7. Qe2 {[%emt 0:09:31]} Bd6 {[%emt 0:15:15]} 8. O-O {[%emt 0:19:55]} O-O {[%emt 0:04:08]} 9. d3 {[%emt 0:06:54]} Re8 {[%emt 0:07:53]} 10. Ne4 {[%emt 0:08:22]} Be7 {[%emt 0:06:55]} 11. Nxf6+ {[%emt 0:02:06]} Bxf6 {[%emt 0:01:02]} 12. Re1 {[%emt 0:02:49]} Ne7 {[%emt 0:05:37]} 13. Qf3 {[%emt 0:14:48]} Bf5 {[%emt 0:13:13]} 14. Nd2 {[%emt 0:03:52]} Bg6 {[%emt 0:07:55]} 15. Ne4 {[%emt 0:01:03]} Nf5 {[%emt 0:07:54]} 16. b3 {[%emt 0:05:02]} a6 {[%emt 0:03:24]} 17. a4 {[%emt 0:02:27]} Rb8 {[%emt 0:05:04]} 18. b4 {[%emt 0:01:43]} Be7 {[%emt 0:03:16]} 19. Bb2 {[%emt 0:07:04]} Nd6 {[%emt 0:03:11]} 20. Nxd6 {[%emt 0:01:47]} Qxd6 {[%emt 0:01:00]} 21. Ba3 {[%emt 0:01:05]} Bf6 {[%emt 0:03:44]} 22. b5 {[%emt 0:02:04]} Qd8 {[%emt 0:03:03]} 23. Rac1 {[%emt 0:01:06]} Be7 {[%emt 0:02:35]} 24. Bxe7 {[%emt 0:00:58]} Qxe7 {[%emt 0:00:09]} 25. bxa6 {[%emt 0:00:33]} bxa6 {[%emt 0:00:11]} 26. Bxa6 {[%emt 0:00:08]} e4 {[%emt 0:00:27]} 27. Qg3 {[%emt 0:00:52]} Qf6 {[%emt 0:01:57]} 28. dxe4 Qxa6 {[%emt 0:00:39]} 29. Qxc7 {[%emt 0:01:41]} Qxa4 {[%emt 0:01:02]} 30. f3 {[%emt 0:01:10]} Rbc8 {[%emt 0:01:03]} 31. Qb6 {[%emt 0:00:55]} Qa3 {[%emt 0:00:44]} 32. Qd4 {[%emt 0:00:33]} Qc5 {[%emt 0:00:51]} 33. Qxc5 {[%emt 0:00:08]} Rxc5 {[%emt 0:00:03]} 34. d6 {[%emt 0:01:12]} Rd8 {[%emt 0:00:39]} 35. e5 {[%emt 0:00:20]} Bf5 {[%emt 0:00:20]} 36. g4 {[%emt 0:00:41]} Be6 {[%emt 0:00:21]} 37. h3 {[%emt 0:00:12]} Rc4 {[%emt 0:00:30]} 38. Kg2 {[%emt 0:00:28]} h6 {[%emt 0:01:37]} 39. h4 {[%emt 0:02:05]} Kf8 {[%emt 0:02:02]} 40. Kg3 {[%emt 0:00:22]} g5 {[%emt 0:00:43]} 41. hxg5 {[%emt 0:30:17]} hxg5 {[%emt 0:30:09]} 42. Rh1 {[%emt 0:00:23]} Kg7 {[%emt 0:00:19]} 43. Rh5 {[%emt 0:00:28]} Kg6 {[%emt 0:00:42]} 44. Rch1 {[%emt 0:00:10]} Rg8 {[%emt 0:00:00]} 45. Rh7 {[%emt 0:00:00]} Bxg4 {[%emt 0:00:00]} 46. fxg4 {[%emt 0:00:00]} Rxc3+ {[%emt 0:00:00]} 47. Kf2 {[%emt 0:00:00]} Rc2+ {[%emt 0:00:00]} 48. Ke3 {[%emt 0:00:00]} Rc3+ {[%emt 0:00:00]} 49. Kd2 {[%emt 0:00:00]} 1-0

[Event "GER-ch Youth U14W 2020"]
[Site "Willingen"]
[Date "2020.10.23"]
[Round "6.13"]
[White "Sinner, Joselyne"]
[Black "Kanno, Clara Yumi"]
[Result "1-0"]
[ECO "B50"]
[WhiteElo "1414"]
[BlackElo "1127"]
[Annotator "NA"]
[PlyCount "69"]
[EventDate "2020.10.20"]
[EventType "swiss"]
[EventRounds "7"]
[EventCountry "GER"]
[SourceTitle "playchess.com"]
[Source "ChessBase"]
[SourceQuality "1"]
[TimeControl "40/5400+30:1800+30"]

1. e4 {[%emt 0:00:00]} c5 {[%emt 0:00:00]} 2. Nf3 {[%emt 0:00:00]} d6 {[%emt 0:00:00]} 3. Nc3 {[%emt 0:00:00]} a6 {[%emt 0:00:46]} 4. a4 {[%emt 0:00:35]} Nf6 {[%emt 0:01:15]} 5. Bc4 {[%emt 0:05:58]} Nc6 {[%emt 0:01:54]} 6. d4 {[%emt 0:03:29]} cxd4 {[%emt 0:00:30]} 7. Nxd4 {[%emt 0:00:07]} e6 {[%emt 0:03:07]} 8. Bg5 {[%emt 0:05:58]} Be7 {[%emt 0:01:01]} 9. O-O {[%emt 0:10:27]} Qc7 {[%emt 0:03:01]} 10. Be2 {[%emt 0:08:03]} O-O {[%emt 0:04:42]} 11. Nb3 {[%emt 0:20:30]} b6 {[%emt 0:07:10]} 12. Be3 {[%emt 0:08:04]} Bb7 {[%emt 0:05:45]} 13. f4 {[%emt 0:09:05]} Rad8 {[%emt 0:07:35]} 14. Qe1 {[%emt 0:02:07]} Nb4 {[%emt 0:10:55]} 15. Bd3 {[%emt 0:05:26]} Ng4 {[%emt 0:20:44]} 16. Bd2 {[%emt 0:03:48]} d5 {[%emt 0:15:39]} 17. Nxd5 {[%emt 0:07:56]} Nxd5 {[%emt 0:03:39]} 18. exd5 {[%emt 0:00:09]} exd5 {[%emt 0:02:10]} 19. Qg3 {[%emt 0:01:08]} Nf6 {[%emt 0:00:26]} 20. Kh1 {[%emt 0:00:39]} Rfe8 {[%emt 0:00:52]} 21. Nd4 {[%emt 0:00:29]} Bf8 {[%emt 0:01:01]} 22. Qg5 {[%emt 0:00:51]} a5 {[%emt 0:00:45]} 23. Rf3 {[%emt 0:00:32]} Rd6 {[%emt 0:02:57]} 24. Nb5 {[%emt 0:01:12]} Qd7 {[%emt 0:02:19]} 25. Nxd6 {[%emt 0:01:35]} Qxd6 {[%emt 0:00:31]} 26. Rh3 {[%emt 0:00:38]} Ne4 {[%emt 0:01:41]} 27. Bxe4 {[%emt 0:01:36]} dxe4 {[%emt 0:00:05]} 28. f5 {[%emt 0:00:49]} Qe5 {[%emt 0:00:52]} 29. Bc3 {[%emt 0:00:36]} f6 {[%emt 0:00:31]} 30. Qh5 {[%emt 0:00:27]} Qd5 {[%emt 0:00:34]} 31. Rd1 {[%emt 0:00:30]} Qc6 {[%emt 0:00:20]} 32. Qxh7+ {[%emt 0:00:42]} Kf7 {[%emt 0:00:05]} 33. Qg6+ {[%emt 0:00:28]} Ke7 {[%emt 0:00:20]} 34. Rh7 {[%emt 0:01:15]} Qc4 {[%emt 0:00:34]} 35. Bxf6# {[%emt 0:00:21]} 1-0